fUSD/lending_fUSD_20240422
["ID","MTS","AMOUNT","RATE_DAILY","PERIOD"]
[323226187,1713818025741,-1323.06,0.00017808,2]
[323226188,1713818025752,-1009.86,0.00017808,2]
[323226189,1713818025762,-580.66,0.00017808,2]
[323226190,1713818025772,-996.9,0.00017808,2]
[323226191,1713818025782,-685.24,0.00017808,2]
[323226192,1713818025793,-751.49,0.00017808,2]
[323226193,1713818025802,-1254.19,0.00017808,2]
[323226194,1713818025811,-4409.84,0.00017808,2]
[323226195,1713818025821,-513.13,0.00017808,2]
[323226196,1713818025831,-860.39,0.00017808,2]
[323226197,1713818025842,-605.11,0.00017808,2]
[323226198,1713818025852,-1437.23,0.00017808,2]
[323226199,1713818025861,-1024.83,0.00017808,2]
[323226200,1713818025871,-794.18,0.00017808,2]
[323226201,1713818025880,-1182.95,0.00017808,2]
[323226202,1713818025889,-1314.8,0.00017808,2]
[323226203,1713818025902,-500.0,0.00017808,2]
[323226204,1713818025911,-983.81,0.00017808,2]
[323226205,1713818025920,-1869.66,0.00017808,2]
[323226206,1713818025930,-914.73,0.00017808,2]
[323226207,1713818025940,-876.01,0.00017808,2]
[323226208,1713818025949,-245.24527563,0.00017808,2]
[323226209,1713818025958,-878.84,0.00017808,2]
[323226210,1713818025969,-541.31,0.00017808,2]
[323226211,1713818025978,-894.0,0.00017808,2]
[323226212,1713818025988,-2061.61,0.00017808,2]
[323226213,1713818025998,-1124.13,0.00017808,2]
[323226214,1713818026007,-1403.67,0.00017808,2]
[323226215,1713818026017,-1325.09,0.00017808,2]
[323226216,1713818026027,-775.89,0.00017808,2]
[323226217,1713818026037,-1211.22,0.00017808,2]
[323226218,1713818026046,-1196.82,0.00017808,2]
[323226219,1713818026055,-1451.51,0.00017808,2]
[323226220,1713818026064,-1680.65,0.00017808,2]
[323226221,1713818026073,-1636.05,0.00017808,2]
[323226222,1713818026083,-922.47,0.00017808,2]
[323226223,1713818026093,-500.0,0.00017808,2]
[323226224,1713818026103,-725.28,0.00017808,2]
[323226225,1713818026112,-816.4,0.00017808,2]
[323226226,1713818026122,-500.0,0.00017808,2]
[323226227,1713818026131,-500.0,0.00017808,2]
[323226228,1713818026140,-754.42,0.00017808,2]
[323226229,1713818026150,-1131.8,0.00017808,2]
[323226230,1713818026159,-526.67,0.00017808,2]
[323226231,1713818026168,-1402.5,0.00017808,2]
[323226232,1713818026180,-500.0,0.00017808,2]
[323226233,1713818026190,-532.25,0.00017808,2]
[323226234,1713818026199,-787.9,0.00017808,2]
[323226235,1713818026209,-559.84,0.00017808,2]
[323226236,1713818026219,-1069.11,0.00017808,2]
[323226237,1713818026228,-1256.58,0.00017808,2]
[323226238,1713818026238,-628.34,0.00017808,2]
[323226239,1713818026248,-284.82,0.00017808,2]
[323226240,1713818026257,-624.97,0.00017808,2]
[323226241,1713818026267,-1806.23,0.00017808,2]
[323226242,1713818026277,-1450.35,0.00017808,2]
[323226243,1713818026286,-1359.54,0.00017808,2]
[323226244,1713818026295,-500.0,0.00017808,2]
[323226245,1713818026305,-502.81,0.00017808,2]
[323226246,1713818026314,-1191.78,0.00017808,2]
[323226247,1713818026323,-888.12,0.00017808,2]
[323226248,1713818026333,-578.9,0.00017808,2]
[323226249,1713818026343,-1855.61,0.00017808,2]
[323226250,1713818026353,-583.38,0.00017808,2]
[323226251,1713818026363,-1313.44,0.00017808,2]
[323226252,1713818026372,-1448.43,0.00017808,2]
[323226253,1713818026382,-500.0,0.00017808,2]
[323226254,1713818026391,-1028.72,0.00017808,2]
[323226255,1713818026401,-595.0,0.00017808,2]
[323226256,1713818026411,-547.89,0.00017808,2]
[323226257,1713818026421,-1641.26,0.00017808,2]
[323226258,1713818026430,-1768.32,0.00017808,2]
[323226259,1713818026441,-248.28317699,0.00017808,2]
[323226260,1713818026450,-3339.2,0.00017808,2]
[323226261,1713818026459,-668.1,0.00017808,2]
[323226262,1713818026469,-863.77,0.00017808,2]
[323226263,1713818026479,-500.0,0.00017808,2]
[323226264,1713818026488,-1124.07,0.00017808,2]
[323226265,1713818026497,-557.13,0.00017808,2]
[323226266,1713818026507,-562.12,0.00017808,2]
[323226267,1713818026516,-840.96,0.00017808,2]
[323226268,1713818026525,-816.6,0.00017808,2]
[323226269,1713818026535,-500.0,0.00017808,2]
[323226270,1713818026545,-811.15,0.00017808,2]
[323226271,1713818026554,-1876.65,0.00017808,2]
[323226272,1713818026564,-1275.39,0.00017808,2]
[323226273,1713818026573,-1190.54,0.00017808,2]
[323226274,1713818026583,-1082.13,0.00017808,2]
[323226275,1713818026593,-1247.63,0.00017808,2]
[323226276,1713818026602,-754.66,0.00017808,2]
[323226277,1713818026611,-2584.59,0.00017808,2]
[323226278,1713818026621,-3329.52,0.00017808,2]
[323226279,1713818026630,-1169.33,0.00017808,2]
[323226280,1713818026638,-621.96,0.00017808,2]
[323226281,1713818026648,-500.0,0.00017808,2]
[323226282,1713818026657,-845.41,0.00017808,2]
[323226283,1713818026666,-755.77,0.00017808,2]
[323226284,1713818026676,-973.92,0.00017808,2]
[323226285,1713818026685,-1019.33,0.00017808,2]
[323226286,1713818026695,-549.92,0.00017808,2]
[323226287,1713818026704,-500.0,0.00017808,2]
[323226288,1713818026714,-1233.41,0.00017808,2]
[323226289,1713818026723,-524.29,0.00017808,2]
[323226290,1713818026733,-730.26,0.00017808,2]
[323226291,1713818026743,-1250.58,0.00017808,2]
[323226292,1713818026752,-2886.05,0.00017808,2]
[323226293,1713818026762,-590.06,0.00017808,2]
[323226294,1713818026771,-500.0,0.00017808,2]
[323226295,1713818026780,-1827.41,0.00017808,2]
[323226296,1713818026790,-744.02,0.00017808,2]
[323226297,1713818026799,-1751.5,0.00017808,2]
[323226298,1713818026808,-556.3631069,0.00017808,2]
[323226299,1713818026818,-1503.69,0.00017808,2]
[323226300,1713818026827,-1054.98,0.00017808,2]
[323226301,1713818026837,-500.0,0.00017808,2]
[323226302,1713818026847,-527.77,0.00017808,2]
[323226303,1713818026857,-1757.63,0.00017808,2]
[323226304,1713818026866,-1390.28,0.00017808,2]
[323226305,1713818026877,-543.73,0.00017808,2]
[323226306,1713818026887,-800.72,0.00017808,2]
[323226307,1713818026900,-560.39,0.00017808,2]
[323226308,1713818026909,-710.37,0.00017808,2]
[323226309,1713818026918,-8671.29,0.00017808,2]
[323226310,1713818026927,-2737.44,0.00017808,2]
[323226311,1713818026940,-991.82,0.00017808,2]
[323226312,1713818026949,-500.0,0.00017808,2]
[323226313,1713818026958,-1220.79,0.00017808,2]
[323226314,1713818026968,-500.0,0.00017808,2]
[323226315,1713818026978,-3731.89,0.00017808,2]
[323226316,1713818027121,-4012.68,0.00017808,2]
[323226317,1713818027132,-1170.18,0.00017808,2]
[323226318,1713818027142,-1044.89,0.00017808,2]
[323226319,1713818027152,-1190.98,0.00017808,2]
[323226320,1713818027162,-773.35,0.00017808,2]
[323226321,1713818027172,-12096.17,0.00017808,2]
[323226322,1713818027181,-508.4,0.00017808,2]
[323226323,1713818027191,-938.55,0.00017808,2]
[323226324,1713818027201,-20433.91,0.00017808,2]
[323226325,1713818027211,-1147.24,0.00017808,2]
[323226326,1713818027221,-1529.34,0.00017808,2]
[323226327,1713818027231,-1727.84,0.00017808,2]
[323226328,1713818027241,-4437.11,0.00017808,2]
[323226329,1713818027251,-3682.04,0.00017808,2]
[323226330,1713818027260,-1045.51,0.00017808,2]
[323226331,1713818027270,-502.61,0.00017808,2]
[323226332,1713818027279,-4397.02,0.00017808,2]
[323226333,1713818027288,-2939.82,0.00017808,2]
[323226334,1713818027298,-4066.35,0.00017808,2]
[323226335,1713818027308,-9104.68,0.00017808,2]
[323226336,1713818027317,-2694.54,0.00017808,2]
[323226337,1713818027326,-500.0,0.00017808,2]
[323226338,1713818027336,-606.84,0.00017808,2]
[323226339,1713818027346,-675.73,0.00017808,2]
[323226340,1713818027356,-13312.5,0.00017808,2]
[323226341,1713818027366,-1227.83,0.00017808,2]
[323226342,1713818027375,-843.14,0.00017808,2]
[323226343,1713818027385,-4924.18,0.00017808,2]
[323226344,1713818027394,-500.0,0.00017808,2]
[323226345,1713818027403,-752.32,0.00017808,2]
[323226346,1713818027413,-2295.67,0.00017808,2]
[323226347,1713818027422,-1329.4,0.00017808,2]
[323226348,1713818027431,-500.0,0.00017808,2]
[323226349,1713818027441,-19623.04,0.00017808,2]
[323226350,1713818027450,-696.75,0.00017808,2]
[323226351,1713818027460,-4571.21,0.00017808,2]
[323226352,1713818027469,-8822.49,0.00017808,2]
[323226353,1713818027478,-1065.73,0.00017808,2]
[323226354,1713818027487,-4272.21,0.00017808,2]
[323226355,1713818027497,-2754.05,0.00017808,2]
[323226356,1713818027508,-2238.45,0.00017808,2]
[323226357,1713818027517,-469.8634536,0.00017808,2]
[323226358,1713818027526,-1968.05,0.00017808,2]
[323226359,1713818027536,-17508.63,0.00017808,2]
[323226360,1713818027545,-5023.5,0.00017808,2]
[323226361,1713818027555,-1827.86,0.00017808,2]
[323226362,1713818027564,-5798.87,0.00017808,2]
[323226363,1713818027573,-4518.5,0.00017808,2]
[323226364,1713818027582,-975.21,0.00017808,2]
[323226365,1713818027592,-1356.45,0.00017808,2]
[323226366,1713818027602,-3464.58,0.00017808,2]
[323226367,1713818027611,-533.11,0.00017808,2]
[323226368,1713818027621,-7647.7,0.00017808,2]
[323226369,1713818027630,-980.74,0.00017808,2]
[323226370,1713818027639,-866.39,0.00017808,2]
[323226371,1713818027649,-5213.97,0.00017808,2]
[323226372,1713818027658,-6333.04,0.00017808,2]
[323226373,1713818027668,-1130.77,0.00017808,2]
[323226374,1713818027677,-1424.13,0.00017808,2]
[323226375,1713818027687,-1043.08,0.00017808,2]
[323226376,1713818027696,-500.0,0.00017808,2]
[323226377,1713818027706,-4957.21,0.00017808,2]
[323226378,1713818027715,-972.86,0.00017808,2]
[323226379,1713818027724,-1902.61,0.00017808,2]
[323226380,1713818027734,-17087.41,0.00017808,2]
[323226381,1713818027743,-2426.59,0.00017808,2]
[323226382,1713818027753,-4288.29,0.00017808,2]
[323226383,1713818027763,-8918.06,0.00017808,2]
[323226384,1713818027772,-1173.49,0.00017808,2]
[323226385,1713818027782,-8646.75,0.00017808,2]
[323226386,1713818027791,-500.0,0.00017808,2]
[323226387,1713818027800,-663.73,0.00017808,2]
[323226388,1713818027810,-5848.77,0.00017808,2]
[323226389,1713818027820,-14690.22,0.00017808,2]
[323226390,1713818027830,-1312.73,0.00017808,2]
[323226391,1713818027841,-506.74,0.00017808,2]
[323226392,1713818027851,-2234.61,0.00017808,2]
[323226393,1713818027861,-648.66,0.00017808,2]
[323226394,1713818027871,-10938.94,0.00017808,2]
[323226395,1713818027881,-1962.25,0.00017808,2]
[323226396,1713818027891,-2886.61,0.00017808,2]
[323226397,1713818027904,-579.41,0.00017808,2]
[323226398,1713818027913,-1997.87,0.00017808,2]
[323226399,1713818027923,-500.0,0.00017808,2]
[323226400,1713818027932,-53885.3,0.00017808,2]
[323226401,1713818027942,-1244.34,0.00017808,2]
[323226402,1713818027952,-4051.64,0.00017808,2]
[323226403,1713818027961,-1590.37,0.00017808,2]
[323226404,1713818027972,-7669.72,0.00017808,2]
[323226405,1713818027982,-2236.17,0.00017808,2]
[323226406,1713818027992,-2521.35,0.00017808,2]
[323226407,1713818028001,-1645.21,0.00017808,2]
[323226408,1713818028011,-1510.42,0.00017808,2]
[323226409,1713818028021,-1343.13,0.00017808,2]
[323226410,1713818028032,-1028.46,0.00017808,2]
[323226411,1713818028043,-5067.75,0.00017808,2]
[323226412,1713818028052,-803.65,0.00017808,2]
[323226413,1713818028062,-1544.16,0.00017808,2]
[323226414,1713818028071,-754.93,0.00017808,2]
[323226415,1713818028081,-26471.53,0.00017808,2]
[323226416,1713818028090,-1051.95,0.00017808,2]
[323226417,1713818028100,-1582.45,0.00017808,2]
[323226418,1713818028109,-1393.84,0.00017808,2]
[323226419,1713818028120,-11812.41,0.00017808,2]
[323226420,1713818028130,-1564.41,0.00017808,2]
[323226421,1713818028140,-807.31,0.00017808,2]
[323226422,1713818028149,-3864.45,0.00017808,2]
[323226423,1713818028159,-3718.52,0.00017808,2]
[323226424,1713818028168,-500.0,0.00017808,2]
[323226425,1713818028178,-5811.41,0.00017808,2]
[323226426,1713818028187,-6037.29,0.00017808,2]
[323226427,1713818028196,-1502.85,0.00017808,2]
[323226428,1713818028206,-6389.88,0.00017808,2]
[323226429,1713818028216,-2889.09,0.00017808,2]
[323226430,1713818028226,-669.89,0.00017808,2]
[323226431,1713818028236,-500.0,0.00017808,2]
[323226432,1713818028245,-500.0,0.00017808,2]
[323226433,1713818028255,-1991.04,0.00017808,2]
[323226434,1713818028264,-5057.75,0.00017808,2]
[323226435,1713818028274,-2535.93,0.00017808,2]
[323226436,1713818028283,-610.24,0.00017808,2]
[323226437,1713818028292,-2149.82,0.00017808,2]
[323226438,1713818028302,-500.0,0.00017808,2]
[323226439,1713818028311,-2095.61,0.00017808,2]
[323226440,1713818028321,-9434.59,0.00017808,2]
[323226441,1713818028333,-558.4,0.00017808,2]
[323226442,1713818028344,-1851.7,0.00017808,2]
[323226443,1713818028354,-1148.52,0.00017808,2]
[323226444,1713818028364,-2751.02,0.00017808,2]
[323226445,1713818028374,-500.0,0.00017808,2]
[323226446,1713818028384,-2872.2,0.00017808,2]
[323226447,1713818028393,-560.07,0.00017808,2]
[323226448,1713818028402,-2848.87,0.00017808,2]
[323226449,1713818028412,-4572.48,0.00017808,2]
[323226450,1713818028421,-12108.08,0.00017808,2]
[323226451,1713818028430,-6735.46,0.00017808,2]
[323226452,1713818028440,-2605.69,0.00017808,2]
[323226453,1713818028451,-505.78,0.00017808,2]
[323226454,1713818028463,-1139.18,0.00017808,2]
[323226455,1713818028472,-4970.85,0.00017808,2]
[323226456,1713818028482,-5993.52,0.00017808,2]
[323226457,1713818028491,-4162.92,0.00017808,2]
[323226458,1713818028500,-4558.05,0.00017808,2]
[323226459,1713818028510,-2320.73,0.00017808,2]
[323226460,1713818028519,-38504.87,0.00017808,2]
[323226461,1713818028528,-2509.82,0.00017808,2]
[323226462,1713818028537,-4258.45,0.00017808,2]
[323226463,1713818028547,-782.97,0.00017808,2]
[323226464,1713818028557,-1377.87,0.00017808,2]
[323226465,1713818028566,-2445.43,0.00017808,2]
[323226466,1713818028575,-844.44,0.00017808,2]
[323226467,1713818028584,-1194.19,0.00017808,2]
[323226468,1713818028597,-4269.95,0.00017808,2]
[323226469,1713818028606,-1360.06,0.00017808,2]
[323226470,1713818028616,-1464.57,0.00017808,2]
[323226471,1713818028625,-535.38,0.00017808,2]
[323226472,1713818028634,-519.11,0.00017808,2]
[323226473,1713818028644,-2389.58,0.00017808,2]
[323226474,1713818028655,-4846.13,0.00017808,2]
[323226475,1713818028664,-2486.12,0.00017808,2]
[323226476,1713818028673,-500.0,0.00017808,2]
[323226477,1713818028683,-4078.34,0.00017808,2]
[323226478,1713818028692,-1059.02,0.00017808,2]
[323226479,1713818028702,-9091.85,0.00017808,2]
[323226480,1713818028711,-5188.48,0.00017808,2]
[323226481,1713818028730,-1379.16,0.00017808,2]
[323226482,1713818028742,-3845.3,0.00017808,2]
[323226483,1713818028752,-3772.2,0.00017808,2]
[323226484,1713818028762,-2377.01,0.00017808,2]
[323226485,1713818028771,-3089.82,0.00017808,2]
[323226486,1713818028781,-11616.79,0.00017808,2]
[323226487,1713818028790,-1036.73,0.00017808,2]
[323226488,1713818028799,-894.91,0.00017808,2]
[323226489,1713818028809,-519.63,0.00017808,2]
[323226490,1713818028818,-500.0,0.00017808,2]
[323226491,1713818028829,-3283.29,0.00017808,2]
[323226492,1713818028840,-574.54,0.00017808,2]
[323226493,1713818028850,-6142.2,0.00017808,2]
[323226494,1713818028861,-7530.97,0.00017808,2]
[323226495,1713818028870,-3119.61,0.00017808,2]
[323226496,1713818028879,-1052.32,0.00017808,2]
[323226497,1713818028889,-1615.52,0.00017808,2]
[323226498,1713818028901,-8074.97,0.00017808,2]
[323226499,1713818028910,-2299.35,0.00017808,2]
[323226500,1713818028920,-1654.01,0.00017808,2]
[323226501,1713818028929,-4170.98,0.00017808,2]
[323226502,1713818028940,-841.29,0.00017808,2]
[323226503,1713818028950,-9718.3,0.00017808,2]
[323226504,1713818028959,-1294.69,0.00017808,2]
[323226505,1713818028969,-580.64,0.00017808,2]
[323226506,1713818028979,-2541.75,0.00017808,2]
[323226507,1713818028988,-500.0,0.00017808,2]
[323226508,1713818029001,-2729.9,0.00017808,2]
[323226509,1713818029011,-555.29,0.00017808,2]
[323226510,1713818029021,-2620.59,0.00017808,2]
[323226511,1713818029031,-1646.2,0.00017808,2]
[323226512,1713818029040,-3612.79,0.00017808,2]
[323226513,1713818029050,-3159.44,0.00017808,2]
[323226514,1713818029060,-5252.04,0.00017808,2]
[323226515,1713818029071,-500.0,0.00017808,2]
[323226516,1713818029080,-250.0,0.00017808,2]
[323226517,1713818029092,-1523.59,0.00017808,2]
[323226518,1713818029101,-608.44,0.00017808,2]
[323226519,1713818029111,-13095.85,0.00017808,2]
[323226520,1713818029120,-5833.37,0.00017808,2]
[323226521,1713818029129,-6897.16,0.00017808,2]
[323226522,1713818029138,-6152.13,0.00017808,2]
[323226523,1713818029148,-3299.3,0.00017808,2]
[323226524,1713818029157,-1238.36,0.00017808,2]
[323226525,1713818029166,-13435.6,0.00017808,2]
[323226526,1713818029175,-943.08,0.00017808,2]
[323226527,1713818029185,-3819.44,0.00017808,2]
[323226528,1713818029195,-1406.96,0.00017808,2]
[323226529,1713818029205,-769.83,0.00017808,2]
[323226530,1713818029214,-500.0,0.00017808,2]
[323226531,1713818029223,-722.61,0.00017808,2]
[323226532,1713818029233,-930.5,0.00017808,2]
[323226533,1713818029242,-500.0,0.00017808,2]
[323226534,1713818029251,-2367.11,0.00017808,2]
[323226535,1713818029261,-780.85,0.00017808,2]
[323226536,1713818029665,-7256.26,0.00017808,2]
[323226537,1713818029675,-1025.63,0.00017808,2]
[323226538,1713818029685,-10754.04,0.00017808,2]
[323226539,1713818029694,-481.72316902,0.00017808,2]
[323226540,1713818029704,-634.73,0.00017808,2]
[323226541,1713818029713,-500.0,0.00017808,2]
[323226542,1713818029723,-530.36,0.00017808,2]
[323226543,1713818029732,-6189.49,0.00017808,2]
[323226544,1713818029742,-2911.37,0.00017808,2]
[323226545,1713818029752,-943.08,0.00017808,2]
[323226546,1713818029762,-4556.59,0.00017808,2]
[323226547,1713818029772,-523.92,0.00017808,2]
[323226548,1713818029783,-1833.33,0.00017808,2]
[323226549,1713818029819,-1392.71,0.00017808,2]
[323226550,1713818029829,-1487.75,0.00017808,2]
[323226551,1713818029840,-664.1,0.00017808,2]
[323226552,1713818029851,-500.0,0.00017808,2]
[323226553,1713818029860,-4694.74,0.00017808,2]
[323226554,1713818029872,-1392.18,0.00017808,2]
[323226555,1713818029882,-819.7,0.00017808,2]
[323226556,1713818029895,-3597.55,0.00017808,2]
[323226557,1713818029906,-806.58,0.00017808,2]
[323226558,1713818029918,-1874.89,0.00017808,2]
[323226559,1713818029929,-3150.13,0.00017808,2]
[323226560,1713818029939,-1514.8,0.00017808,2]
[323226561,1713818029949,-500.0,0.00017808,2]
[323226562,1713818029959,-702.44,0.00017808,2]
[323226563,1713818029970,-1715.22,0.00017808,2]
[323226564,1713818029983,-1604.37,0.00017808,2]
[323226565,1713818029994,-1853.0,0.00017808,2]
[323226566,1713818030004,-500.0,0.00017808,2]
[323226567,1713818030014,-1240.407864,0.00017808,2]
[323226568,1713818030026,-2767.33385058,0.0001781,2]
[323226569,1713818030036,-2767.33385058,0.0001781,2]
[323226570,1713818030047,-2767.33385058,0.0001781,2]
[323226571,1713818030057,-2767.33385058,0.0001781,2]
[323226572,1713818030068,-2767.33385058,0.0001781,2]
[323226573,1713818030078,-2767.33385058,0.0001781,2]
[323226574,1713818030090,-2767.33385058,0.0001781,2]
[323226575,1713818030099,-2767.33385058,0.0001781,2]
[323226576,1713818030109,-2767.33385058,0.0001781,2]
[323226577,1713818030119,-2767.33385058,0.0001781,2]
[323226578,1713818030129,-2767.33385058,0.0001781,2]
[323226579,1713818030140,-2767.33385058,0.0001781,2]
[323226580,1713818030150,-2767.33385058,0.0001781,2]
[323226581,1713818030160,-2767.33385058,0.0001781,2]
[323226582,1713818030170,-2767.33385058,0.0001781,2]
[323226583,1713818030180,-2767.33385058,0.0001781,2]
[323226584,1713818030191,-2767.33385058,0.0001781,2]
[323226585,1713818030201,-2767.33385058,0.0001781,2]
[323226586,1713818030212,-2767.33385058,0.0001781,2]
[323226587,1713818030222,-2767.83,0.0001781,2]
[323226588,1713818030233,-11069.41040232,0.0001781,2]
[323226589,1713818030243,-11069.41040232,0.0001781,2]
[323226590,1713818030254,-11069.41040232,0.0001781,2]
[323226591,1713818030264,-11069.41040232,0.0001781,2]
[323226592,1713818030275,-11069.41040232,0.0001781,2]
[323226593,1713818030284,-11069.41040232,0.0001781,2]
[323226594,1713818030294,-11069.41040232,0.0001781,2]
[323226595,1713818030305,-11069.41040232,0.0001781,2]
[323226596,1713818030315,-11069.41040232,0.0001781,2]
[323226597,1713818030326,-11069.41040232,0.0001781,2]
[323226598,1713818030339,-11069.41040232,0.0001781,2]
[323226599,1713818030349,-11069.41040232,0.0001781,2]
[323226600,1713818030359,-11069.41040232,0.0001781,2]
[323226601,1713818030370,-11069.41040232,0.0001781,2]
[323226602,1713818030379,-11069.41040232,0.0001781,2]
[323226603,1713818030390,-11069.41040232,0.0001781,2]
[323226604,1713818030401,-11069.41040232,0.0001781,2]
[323226605,1713818030412,-11069.41040232,0.0001781,2]
[323226606,1713818030422,-11069.41040232,0.0001781,2]
[323226607,1713818030432,-11069.91,0.0001781,2]
[323226608,1713818030442,-1255.65239307,0.0001781,2]
[323226609,1713818030451,-1255.65239307,0.0001781,2]
[323226610,1713818030461,-1255.65239307,0.0001781,2]
[323226611,1713818030470,-1255.65239307,0.0001781,2]
[323226612,1713818030480,-1255.65239307,0.0001781,2]
[323226613,1713818030489,-1255.65239307,0.0001781,2]
[323226614,1713818030500,-1255.65239307,0.0001781,2]
[323226615,1713818030510,-1255.65239307,0.0001781,2]
[323226616,1713818030519,-1255.65239307,0.0001781,2]
[323226617,1713818030528,-1255.65239307,0.0001781,2]
[323226618,1713818030538,-1255.65239307,0.0001781,2]
[323226619,1713818030549,-1255.65239307,0.0001781,2]
[323226620,1713818030559,-1255.65239307,0.0001781,2]
[323226621,1713818030570,-1255.65239307,0.0001781,2]
[323226622,1713818030581,-1255.65239307,0.0001781,2]
[323226623,1713818030593,-1255.65239307,0.0001781,2]
[323226624,1713818030603,-1255.65239307,0.0001781,2]
[323226625,1713818030613,-1255.65239307,0.0001781,2]
[323226626,1713818030622,-1255.65239307,0.0001781,2]
[323226627,1713818030632,-1256.15,0.0001781,2]
[323226628,1713818030641,-5022.68457227,0.0001781,2]
[323226629,1713818030651,-5022.68457227,0.0001781,2]
[323226630,1713818030660,-5022.68457227,0.0001781,2]
[323226631,1713818030670,-5022.68457227,0.0001781,2]
[323226632,1713818030680,-5022.68457227,0.0001781,2]
[323226633,1713818030690,-5022.68457227,0.0001781,2]
[323226634,1713818030700,-5022.68457227,0.0001781,2]
[323226635,1713818030711,-5022.68457227,0.0001781,2]
[323226636,1713818030721,-5022.68457227,0.0001781,2]
[323226637,1713818030731,-5022.68457227,0.0001781,2]
[323226638,1713818030742,-5022.68457227,0.0001781,2]
[323226639,1713818030752,-5022.68457227,0.0001781,2]
[323226640,1713818030762,-5022.68457227,0.0001781,2]
[323226641,1713818030773,-5022.68457227,0.0001781,2]
[323226642,1713818030784,-5022.68457227,0.0001781,2]
[323226643,1713818030795,-5022.68457227,0.0001781,2]
[323226644,1713818030807,-5022.68457227,0.0001781,2]
[323226645,1713818030819,-5022.68457227,0.0001781,2]
[323226646,1713818030830,-5022.68457227,0.0001781,2]
[323226647,1713818030841,-5023.18,0.0001781,2]
[323226648,1713818030853,-248.05133434,0.0001781,2]
[323226649,1713818030863,-248.05133434,0.0001781,2]
[323226650,1713818030876,-248.05133434,0.0001781,2]
[323226651,1713818030887,-248.05133434,0.0001781,2]
[323226652,1713818030901,-248.05133434,0.0001781,2]
[323226653,1713818030911,-248.05133434,0.0001781,2]
[323226654,1713818030922,-248.05133434,0.0001781,2]
[323226655,1713818030931,-248.05133434,0.0001781,2]
[323226656,1713818030941,-248.05133434,0.0001781,2]
[323226657,1713818030950,-248.05133434,0.0001781,2]
[323226658,1713818030960,-248.05133434,0.0001781,2]
[323226659,1713818030971,-248.05133434,0.0001781,2]
[323226660,1713818030982,-248.05133434,0.0001781,2]
[323226661,1713818030992,-248.05133434,0.0001781,2]
[323226662,1713818031002,-248.05133434,0.0001781,2]
[323226663,1713818031012,-248.05133434,0.0001781,2]
[323226664,1713818031022,-248.05133434,0.0001781,2]
[323226665,1713818031032,-248.05133434,0.0001781,2]
[323226666,1713818031042,-248.05133434,0.0001781,2]
[323226667,1713818031052,-248.55,0.0001781,2]
[323226668,1713818031061,-992.28033734,0.0001781,2]
[323226669,1713818031072,-992.28033734,0.0001781,2]
[323226670,1713818031081,-992.28033734,0.0001781,2]
[323226671,1713818031092,-992.28033734,0.0001781,2]
[323226672,1713818031101,-992.28033734,0.0001781,2]
[323226673,1713818031112,-992.28033734,0.0001781,2]
[323226674,1713818031122,-992.28033734,0.0001781,2]
[323226675,1713818031132,-992.28033734,0.0001781,2]
[323226676,1713818031142,-992.28033734,0.0001781,2]
[323226677,1713818031152,-992.28033734,0.0001781,2]
[323226678,1713818031162,-992.28033734,0.0001781,2]
[323226679,1713818031171,-992.28033734,0.0001781,2]
[323226680,1713818031180,-992.28033734,0.0001781,2]
[323226681,1713818031190,-992.28033734,0.0001781,2]
[323226682,1713818031200,-992.28033734,0.0001781,2]
[323226683,1713818031210,-992.28033734,0.0001781,2]
[323226684,1713818031219,-992.28033734,0.0001781,2]
[323226685,1713818031228,-992.28033734,0.0001781,2]
[323226686,1713818031238,-992.28033734,0.0001781,2]